Workbook

Sheet Sheet1
A3: INSTRUCTIONS: Use this form when a single information collection document involves multiple reporting and recordkeeping requirements. The totals of the figures in cols. should be entered in item 13 of OMB-83-I: cols. (D) &/or (I) = 13a (respondent is only counted once); cols. F & I = 13b; cols. H & K = 13c. (F)Total/(D)Total = (E)Average (H)Total/(F)Total = (G)Average (K)Total/(I)Total = (J)Average NOTE: The columns will calculate automatically. If Col. E's response is something other than annually, i.e., 1/6 years, list as "1/6" & decimal will display. | I3: TITLE OF INFORMATION COLLECTION REQUEST | N3: OMB NO.
I5: Forest Products Removal Permits and Contracts | N5: 0596-0085
N8: DATE PREPARED:
N10: 2017-11-29
A12: IDENTIFICATION OF REPORTING OR RECORDKEEPING REQUIREMENT | H12: ANNUAL BURDEN
H14: REPORTS | M14: RECORDS
O16: TOTAL
G17: FORMS NO (S) | H17: NO. OF | I17: NO OF | J17: TOTAL ANNUAL | K17: HOURS | L17: TOTAL | M17: NO. OF | N17: ANNUAL | O17: RECORD- | P17: COST | Q17: TOTAL
A18: SECTION OF | B18: DESCRIPTION | G18: (If "none" | H18: RESPONDENTS | I18: RESPONSES | J18: RESPONSES | K18: PER | L18: HOURS | M18: RECORD- | N18: HOURS PER | O18: KEEPING HOURS | P18: PER | Q18: COST
A19: REGS. | G19: so state) | I19: PER | J19: (Col. D x E) | K19: RESPONSE | L19: (Col. F x G) | M19: KEEPERS | N19: RECORD- | O19: (Col. I x J) | P19: HOUR
I20: RESPONDENT | N20: KEEPER
A21: (A) | B21: (B) | G21: (C) | H21: (D) | I21: (E) | J21: (F) | K21: (G) | L21: (H) | M21: (I) | N21: (J) | O21: (K) | P21: (L) | Q21: (M)
B22: Forest Products Removal Permit and cash receipt | G22: FS-2400-1/BLM-5450-24 | J22: =SUM(H22*I22) -> 0 | L22: =SUM(J22*K22) -> 0 | O22: =SUM(M22*N22) -> 0 | Q22: =SUM(L22+O22)*P22 -> 0
B23: - Private Sector | H23: 15182 | I23: 1.5 | J23: 22773 | K23: 0.0833 | L23: 1896.9909 | M23: 11387 | N23: 0.0667 | O23: 759.5129 | P23: 27.83 | Q23: =SUM(L23+O23)*P23 -> 73930.50075
B24: -Individuals and Households | H24: 161355 | I24: 1.5 | J24: 242032.5 | K24: 0.0833 | L24: 20161.30725 | M24: 121016 | N24: 0.0667 | O24: 8071.7672 | P24: 23.96 | Q24: 676464.4638
B25: -State ,Tribal, and Local Governments | H25: 0 | J25: 0 | L25: 0 | M25: 0 | O25: 0 | Q25: 0
J26: 0 | L26: 0 | O26: 0 | Q26: 0
B27: Forest Products Contract and Cash Receipt | G27: FS-2400-4/4ANF | J27: 0 | L27: 0 | O27: 0 | Q27: 0
B28: -Private Sector | H28: 180 | I28: 1.5 | J28: =SUM(H28*I28) -> 270 | K28: 0.0833 | L28: =SUM(J28*K28) -> 22.491 | M28: 90 | N28: 0.0667 | O28: =SUM(M28*N28) -> 6.003 | P28: 27.83 | Q28: 792.98802
B29: -Individuals and Households | H29: 45 | I29: 1.5 | J29: 67.5 | K29: 0.0833 | L29: 5.62275 | M29: 23 | N29: 0.0667 | O29: 1.5341 | P29: 23.86 | Q29: 170.762441
B30: -State, Tribal, and Local Governments | H30: 0 | J30: 0 | K30: 0 | L30: =SUM(J30*K30) -> 0 | M30: 0 | O30: 0 | Q30: 0
J31: 0 | L31: 0 | O31: 0 | Q31: 0
B32: Forest Products Free Use Permit | G32: FS-2400-8 | J32: 0 | L32: 0 | O32: 0 | Q32: 0
B33: -Private Sector | H33: 0 | J33: 0 | L33: 0 | M33: 0 | O33: 0 | Q33: 0
B34: -Individuals and Households | H34: 14328 | I34: 1.5 | J34: =SUM(H34*I34) -> 21492 | K34: 0.0833 | L34: =SUM(J34*K34) -> 1790.2836 | M34: 7164 | N34: 0.0667 | O34: =SUM(M34*N34) -> 477.8388 | P34: 23.86 | Q34: 54117.40046
A35: 36 CFR 223.15 | B35: Tribal Governments | G35: FS-2400-8 | H35: 567 | I35: 1.5 | J35: 850.5 | K35: 0.0833 | L35: 70.84665 | M35: 425 | N35: 0.0667 | O35: 28.3475 | P35: 23.86 | Q35: 2366.772419
A36: 36 CFR 223.15 | B36: Written Request for Tribal Free Use | G36: None | H36: 567 | I36: 1.5 | J36: 850.5 | K36: 0.1667 | L36: 141.77835 | M36: 0 | N36: 0 | O36: 0 | Q36: 0
B37: SUBTOTAL | J37: =SUM(J22:J36) -> 288336 | L37: =SUM(L22:L36) -> 24089.3205 | M37: =SUM(M22:M36) -> 140105 | O37: =SUM(O22:O36) -> 9345.0035 | Q37: =SUM(Q22:Q36) -> 807842.8879
B38: TOTAL OF ALL PAGES | J38: =SUM(J37+J67+J96+J125+J154) -> 288336 | L38: =SUM(L37+L67+L96+L125+L154) -> 24089.3205 | M38: =SUM(M37+M67+M96+M125+M154) -> 140105 | O38: =SUM(O37+O67+O96+O125+O154) -> 9345.0035 | Q38: =SUM(Q37+Q67+Q96+Q125+Q154) -> 807842.8879
A39: TOTAL - COLUMNS "F" AND "I" = OMB 831, 13 b; COLUMNS "H" AND "K" = OMB 831, 13c | J39: =SUM(J38+M38) -> 428441 | L39: =SUM(L38+O38) -> 33434.324
